bitfinex-derivatives/quotes_ETHF0:USTF0_20250103
["timestamp","ask_amount","ask_price","bid_price","bid_amount"]
[1735907719325,0.28839,3470.1,3470.0,4.92651661]
[1735907720120,2.5612531,3470.1,3470.0,11.68781613]
[1735907722823,2.5612531,3470.1,3469.7,4.50900638]
[1735907722824,0.28841,3469.8,3469.7,4.50900638]
[1735907723023,5.7690731,3469.8,3469.7,4.50900638]
[1735907724117,51.2806631,3469.8,3469.3,4.50900638]
[1735907724322,5.7691131,3469.4,3469.3,4.50900638]
[1735907725723,0.28845,3469.3,3469.2,0.28846]
[1735907725926,0.28846,3469.2,3469.1,0.28847]
[1735907726423,5.4806631,3469.4,3469.0,0.28848]
[1735907726424,0.28848,3469.1,3469.0,0.28848]
[1735907726619,5.4806631,3469.4,3468.8,4.50900638]
[1735907726820,6.2018031,3469.4,3468.8,4.50900638]
[1735907727024,6.2018031,3469.4,3468.9,4.50900638]
[1735907727224,0.28848,3469.0,3468.9,4.79748638]
[1735907728223,0.28848,3469.0,3468.9,0.28848]
[1735907729324,0.28849,3468.9,3468.8,0.28849]
[1735907729523,6.2018031,3469.4,3468.7,4.50900638]
[1735907729723,5.4806631,3469.4,3468.7,4.50900638]
[1735907730030,0.72114,3469.3,3468.6,4.50900638]
[1735907730517,0.28849,3468.9,3468.8,0.28849]
[1735907731025,0.28848,3469.0,3468.9,0.28848]
[1735907731214,0.28849,3468.9,3468.8,0.28849]
[1735907731614,0.28848,3469.0,3468.9,0.28848]
[1735907732228,3.2078,3469.4,3468.6,0.72128]
[1735907732431,3.49625,3469.4,3469.3,0.28845]
[1735907733920,0.28848,3469.0,3468.9,4.79748638]
[1735907734120,0.28848,3469.0,3468.9,4.51058146]
[1735907735221,0.28848,3469.0,3468.9,4.79907146]
[1735907735423,0.28848,3469.0,3468.9,0.29006508]
[1735907736426,0.28848,3469.0,3468.9,0.00157508]
[1735907738623,3.49628,3469.0,3468.9,0.00157508]
[1735907745734,0.28848,3469.0,3468.9,0.00157508]
[1735907745934,3.49628,3469.0,3468.9,0.00157508]
[1735907753834,6.2017431,3469.6,3468.9,0.00157508]
[1735907754137,0.28844,3469.5,3469.4,0.28844]
[1735907754338,43.7938831,3469.9,3469.0,3.929]
[1735907754339,40.8,3469.9,3469.0,3.929]
[1735907754537,5.76140208,3470.0,3469.8,0.28841]
[1735907754740,0.28841,3469.9,3469.7,0.28841]
[1735907755138,2.26520208,3470.0,3469.6,0.72108]
[1735907755339,2.26520208,3470.0,3469.9,0.2884]
[1735907755828,2.26520208,3470.0,3469.6,0.72108]
[1735907755829,0.28838,3470.2,3469.6,0.72108]
[1735907756033,0.28838,3470.2,3470.1,0.28838]
[1735907756640,40.8,3470.4,3469.5,9.98966948]
[1735907756841,0.28838,3470.3,3470.1,0.28838]
[1735907757041,0.28837,3470.3,3470.1,0.28838]
[1735907757244,0.28838,3470.3,3470.1,0.28838]
[1735907757741,0.28838,3470.3,3470.2,0.28838]
[1735907758043,0.28838,3470.3,3469.9,7.71680638]
[1735907758044,43.0728631,3470.5,3469.9,7.71680638]
[1735907758240,0.28839,3470.1,3470.0,0.28839]
[1735907758443,43.0728631,3470.5,3470.0,0.28839]
[1735907758643,0.28838,3470.2,3470.0,0.28839]
[1735907758938,0.28837,3470.3,3470.0,0.2884]
[1735907759332,43.0728631,3470.5,3470.0,0.28839]
[1735907759537,0.28838,3470.2,3470.0,0.28839]
[1735907760035,0.28839,3470.2,3469.9,7.71680638]
[1735907760239,0.28839,3470.2,3470.0,0.2884]
[1735907760642,0.28839,3470.2,3470.0,4.79740638]
[1735907760844,43.0728631,3470.5,3470.0,4.79740638]
[1735907761038,43.0728631,3470.5,3470.0,4.50900638]
[1735907761233,0.28839,3470.1,3470.0,4.50900638]
[1735907761840,43.0728631,3470.5,3469.9,4.50900638]
[1735907762038,0.28836,3470.4,3470.0,0.28839]
[1735907762347,43.0728631,3470.5,3470.0,0.28839]
[1735907762838,43.0728631,3470.5,3469.9,4.50900638]
[1735907763044,0.28837,3470.4,3470.2,0.28837]
[1735907763447,0.28836,3470.4,3470.2,0.28837]
[1735907763743,43.0728631,3470.5,3470.0,4.50900638]
[1735907763945,40.8,3470.5,3470.0,4.50900638]
[1735907764333,40.8,3470.5,3470.3,0.28837]
[1735907764538,0.28836,3470.4,3470.3,0.28837]
[1735907764950,41.08836,3470.5,3470.4,0.28836]
[1735907765645,40.8,3470.5,3470.4,0.28836]
[1735907765843,0.28832,3470.9,3470.8,0.28833]
[1735907766452,3.2078,3471.0,3470.4,3.2078]
[1735907766748,3.49612,3471.0,3470.9,0.28832]
[1735907767249,3.49612,3471.0,3470.4,3.92871]
[1735907767250,3.49612,3471.0,3470.8,0.28832]
[1735907767650,3.49612,3471.0,3470.9,0.28832]
[1735907767852,3.49612,3471.0,3470.7,0.28833]
[1735907767853,3.2078,3471.0,3470.7,0.28833]
[1735907768047,0.28832,3470.9,3470.7,0.28833]
[1735907768450,0.28833,3470.9,3470.6,4.50900638]
[1735907768752,3.2078,3471.0,3470.7,0.28834]
[1735907768949,0.28832,3470.9,3470.7,0.28834]
[1735907769146,0.28832,3470.9,3470.8,0.28833]
[1735907769343,0.28832,3470.9,3470.6,4.50900638]
[1735907769344,3.49612,3471.0,3470.9,0.28832]
[1735907769544,0.28832,3470.9,3470.8,0.28832]
[1735907769942,3.2078,3471.0,3470.9,0.28832]
[1735907770560,3.2078,3471.0,3470.6,1.135]
[1735907770758,0.28833,3470.9,3470.8,0.28832]
[1735907771956,0.28831,3471.2,3471.1,0.2883]
[1735907772556,0.28831,3471.2,3471.1,0.32778582]
[1735907773253,0.28831,3471.2,3471.1,0.03948582]
[1735907775352,2.5611731,3471.2,3471.1,0.03948582]
[1735907776464,0.28831,3471.2,3471.1,0.32778582]
[1735907776959,0.28831,3471.2,3471.1,0.03948582]
[1735907777460,41.08829,3471.3,3471.1,0.03948582]
[1735907777655,41.08829,3471.3,3470.8,0.72082]
[1735907777860,41.08829,3471.3,3471.2,0.2883]
[1735907778254,0.28829,3471.3,3471.2,0.2883]
[1735907778859,3.2078,3471.4,3470.8,0.72082]
[1735907779060,0.2883,3471.2,3471.1,0.28829]
[1735907781760,0.2883,3471.3,3471.2,0.28829]
[1735907782560,40.8,3471.6,3471.1,0.2883]
[1735907782561,0.28831,3471.2,3471.1,0.2883]
[1735907786562,0.28829,3471.4,3471.3,0.28828]
[1735907789059,40.8,3471.6,3471.0,0.72078]
[1735907789060,44.0078,3471.6,3471.0,0.72078]
[1735907789268,44.29607,3471.6,3471.5,0.28827]
[1735907789666,3.49607,3471.6,3471.5,0.28827]
[1735907790163,3.2078,3471.6,3471.0,0.72078]
[1735907790368,3.2078,3471.6,3470.8,3.92861]
[1735907790559,0.2883,3471.3,3471.2,0.28829]
[1735907793480,2.2728631,3471.5,3470.8,3.2078]
[1735907793664,0.28832,3471.0,3470.9,0.28831]
[1735907794277,3.92854,3471.3,3470.8,3.2078]
[1735907794470,0.72077,3471.1,3470.7,4.50900638]
[1735907794672,0.28833,3470.8,3470.7,4.79733638]
[1735907795272,0.28833,3470.8,3470.7,0.28833]
[1735907797376,0.72077,3471.1,3470.4,7.71680638]
[1735907797575,0.28835,3470.6,3470.5,0.28834]
[1735907798274,0.28835,3470.6,3470.5,4.79734638]
[1735907798771,2.2728631,3471.2,3470.5,4.50900638]
[1735907799075,2.2728631,3471.2,3470.8,0.28832]
[1735907799076,0.28834,3470.9,3470.8,0.28832]
[1735907800079,0.28835,3470.7,3470.6,0.28834]
[1735907800281,0.28835,3470.6,3470.5,5.20973654]
[1735907800770,2.5612131,3470.6,3470.5,4.92139654]
[1735907800971,2.5612131,3470.6,3470.5,9.00422787]
[1735907801481,43.3612131,3470.6,3470.5,9.00422787]
[1735907802573,0.28835,3470.5,3470.4,4.51020987]
[1735907802775,3.49615,3470.5,3470.4,4.51020987]
[1735907804172,3.49615,3470.5,3470.4,9.44332136]
[1735907804477,3.49615,3470.5,3470.4,9.73168136]
[1735907805379,3.49615,3470.5,3470.4,11.9867863]
[1735907805576,3.2078,3470.5,3470.4,11.9867863]
[1735907805773,3.49615,3470.5,3470.4,11.9867863]
[1735907806476,3.2078,3470.5,3470.4,11.9867863]
[1735907806883,3.49615,3470.5,3470.4,11.9867863]
[1735907807183,0.28835,3470.5,3470.4,11.9867863]
[1735907807482,0.28835,3470.6,3470.5,0.28834]
[1735907809580,0.28835,3470.6,3470.5,5.22145149]
[1735907811681,3.2078,3470.9,3470.5,4.93311149]
[1735907811881,2.9936131,3471.2,3470.5,4.93311149]
[1735907812089,0.28834,3470.8,3470.7,0.28833]
[1735907812278,5.47300208,3471.3,3470.5,4.93311149]
[1735907812580,0.2883,3471.2,3471.1,0.2883]
[1735907813081,5.47300208,3471.3,3471.2,0.2883]
[1735907813286,2.26520208,3471.3,3471.2,0.2883]
[1735907813592,0.28826,3471.7,3471.2,3.2078]
[1735907813784,3.2078,3471.8,3471.2,3.2078]
[1735907813987,0.28827,3471.7,3471.6,0.28826]
[1735907815192,0.28827,3471.7,3471.6,4.79903524]
[1735907815486,0.28827,3471.7,3471.6,4.51077524]
[1735907816490,0.28826,3471.6,3471.5,4.51077524]
[1735907818888,0.28826,3471.6,3471.5,9.44361243]
[1735907820183,0.28826,3471.6,3471.5,4.51077524]
[1735907822295,0.28826,3471.6,3471.5,4.79904524]
[1735907822993,0.28826,3471.6,3471.5,4.51077524]
[1735907823295,0.28826,3471.6,3471.5,4.93284422]
[1735907823788,0.28826,3471.6,3471.5,5.22111422]
[1735907823996,0.28826,3471.7,3471.6,0.28826]
[1735907824494,41.5206,3472.0,3471.5,4.93284422]
[1735907824699,0.28826,3471.6,3471.5,11.98727708]
[1735907825791,0.28826,3471.6,3471.5,11.69900708]
[1735907825987,0.28826,3471.6,3471.5,11.98727708]
[1735907827297,0.28826,3471.6,3471.5,11.69900708]
[1735907829798,0.28826,3471.6,3471.5,4.93284422]
[1735907830898,0.28827,3471.5,3471.4,6.76616286]
[1735907832503,0.28827,3471.5,3471.4,4.51367655]
[1735907833601,2.5611331,3471.5,3471.4,4.51367655]
[1735907833804,0.28828,3471.4,3471.3,4.51367655]
[1735907834205,3.49608,3471.4,3471.3,4.51367655]
[1735907835103,0.2883,3471.2,3471.1,4.51367655]
[1735907836506,0.72071,3471.5,3471.0,0.28831]
[1735907836804,0.2883,3471.1,3471.0,0.28831]
[1735907837401,2.26520208,3471.6,3471.2,0.28829]
[1735907837594,0.28829,3471.3,3471.2,0.28829]
[1735907838711,0.72066,3471.7,3471.0,4.93200861]
[1735907838903,0.2883,3471.1,3471.0,5.22031861]
[1735907840021,0.2883,3471.1,3471.0,14.22454648]
[1735907840209,0.2883,3471.2,3471.1,0.2883]
[1735907840908,0.72068,3471.5,3471.0,13.93623648]
[1735907841103,0.2883,3471.1,3471.0,14.22453648]
[1735907841402,0.72068,3471.5,3471.0,9.00422787]
[1735907841603,5.4806631,3471.8,3471.0,9.00422787]
[1735907841805,0.2883,3471.1,3471.0,9.29253787]
[1735907842399,0.2883,3471.1,3471.0,0.28831]
[1735907842909,0.28831,3471.0,3470.9,11.53548683]
[1735907843104,0.28831,3471.0,3470.9,11.24716683]
[1735907843812,0.28831,3471.0,3470.9,14.79760831]
[1735907844914,0.28831,3471.0,3470.9,4.9325361]
[1735907846009,0.28831,3471.0,3470.9,11.70197053]
[1735907850214,0.28831,3471.0,3470.9,4.9325361]
[1735907852814,0.28831,3471.0,3470.9,13.95803443]
[1735907854318,0.28831,3471.0,3470.9,14.24635443]
[1735907855110,0.2883,3471.2,3471.1,0.2883]
[1735907856419,0.28831,3471.1,3471.0,0.28831]
[1735907856620,0.72073,3471.4,3470.9,3.2078]
[1735907856821,0.28834,3470.8,3470.7,0.28833]
[1735907857416,0.28834,3470.8,3470.7,0.73899155]
[1735907857615,0.28834,3470.8,3470.7,15.5536946]
[1735907858320,0.28834,3470.8,3470.7,15.10303305]
[1735907860223,0.28833,3471.0,3470.9,0.28831]
[1735907861420,0.28833,3471.0,3470.9,15.10301305]
[1735907864025,0.28833,3471.0,3470.9,26.39163098]
[1735907864626,0.28833,3471.0,3470.9,26.10332098]
[1735907864822,0.28833,3471.0,3470.9,26.39164098]
[1735907866225,0.28833,3471.0,3470.9,26.10332098]
[1735907866627,0.28833,3471.0,3470.9,14.81470305]
[1735907867431,41.08833,3471.0,3470.9,14.81470305]
[1735907868027,0.28832,3470.9,3470.8,6.77546979]
[1735907868417,3.49612,3470.9,3470.8,6.77546979]
[1735907869631,3.49612,3470.9,3470.8,13.97135411]
[1735907870530,5.7689831,3470.9,3470.8,13.97135411]
[1735907870932,5.7689831,3470.9,3470.8,4.93739439]
[1735907872129,7.74586518,3470.9,3470.6,4.51675635]
[1735907872330,0.28834,3470.7,3470.6,4.51675635]
[1735907873236,3.49614,3470.7,3470.6,4.51675635]
[1735907874825,3.49614,3470.7,3470.6,4.80510635]
[1735907875232,3.49614,3470.7,3470.6,5.22423209]
[1735907876733,3.49614,3470.7,3470.6,4.93588209]
[1735907877731,0.28834,3470.7,3470.6,4.93588209]
[1735907878937,3.2078,3470.8,3470.6,4.51494434]
[1735907879136,0.28834,3470.7,3470.6,4.51494434]
[1735907880938,41.08834,3470.7,3470.6,4.51494434]
[1735907881427,40.8,3470.7,3470.5,4.51494434]
[1735907881627,5.9590762,3470.6,3470.5,4.51494434]
[1735907881935,0.28835,3470.5,3470.4,5.64528069]
[1735907882132,0.28837,3470.3,3470.2,2.26681084]
[1735907882336,0.28839,3470.1,3470.0,10.57821793]
[1735907882735,46.08839,3470.1,3470.0,10.57821793]
[1735907883540,0.28846,3469.3,3469.1,0.28847]
[1735907883842,0.28846,3469.2,3469.1,0.28847]
[1735907884338,3.2078,3469.4,3468.5,3.92909]
[1735907884529,3.2078,3469.4,3469.1,0.28847]
[1735907884530,0.28846,3469.2,3469.1,0.28847]
[1735907889243,0.28848,3469.0,3468.9,0.28848]
[1735907889635,3.2078,3469.4,3468.5,5.4806631]
[1735907889841,3.2078,3469.4,3468.9,0.28848]
[1735907889842,0.28849,3469.0,3468.9,0.28848]
[1735907890645,3.2078,3469.4,3468.5,6.2019731]
[1735907890841,0.28848,3469.1,3469.0,0.28847]
[1735907892150,0.28846,3469.3,3469.2,0.28845]
[1735907892650,3.2078,3469.4,3469.3,0.28845]
[1735907893943,0.28844,3469.6,3469.1,2.2728631]
[1735907894246,0.28844,3469.6,3469.5,0.28844]
[1735907895549,2.2728631,3470.0,3469.1,2.2728631]
[1735907895751,2.2728631,3470.0,3469.1,0.28847]
[1735907895752,0.28847,3469.2,3469.1,0.28847]
[1735907896154,0.28848,3469.0,3468.9,3.2078]
[1735907896450,0.28848,3469.0,3468.9,3.49629]
[1735907898950,0.28848,3469.0,3468.9,0.28849]
[1735907899251,0.28851,3468.7,3468.6,0.2885]
[1735907899752,0.28852,3468.6,3468.5,0.28852]
[1735907900345,40.8,3468.9,3468.4,3.2078]
[1735907900548,0.28851,3468.7,3468.6,0.2885]
[1735907901951,0.72119,3469.1,3468.4,5.4806631]
[1735907902139,0.2885,3468.8,3468.7,0.28849]
[1735907902854,0.28852,3468.7,3468.6,0.28851]
[1735907903047,0.28852,3468.6,3468.5,0.28851]
[1735907903553,0.28852,3468.5,3468.4,3.2078]
[1735907903748,0.28852,3468.5,3467.8,4.1223131]
[1735907903749,0.28856,3468.2,3468.1,0.28854]
[1735907907247,0.28854,3468.4,3468.3,0.28852]
[1735907907455,0.28853,3468.6,3468.5,0.28851]
[1735907907854,3.2078,3468.7,3468.2,2.9942231]
[1735907908046,3.2078,3468.7,3468.6,0.28851]
[1735907912653,3.4963,3468.7,3468.6,0.28851]
[1735907912851,3.2078,3468.7,3468.6,0.28851]
[1735907913656,3.4963,3468.7,3468.6,0.28851]
[1735907913857,3.2078,3468.7,3468.6,0.28851]
[1735907914452,0.28849,3468.9,3468.8,0.2885]
[1735907914665,0.28848,3469.1,3469.0,0.28847]
[1735907916756,0.28846,3469.3,3469.2,0.28845]
[1735907917160,0.28842,3469.7,3469.6,0.28842]
[1735907917360,0.28843,3469.6,3469.5,0.28843]
[1735907917660,3.2078,3469.8,3469.1,2.2728631]
[1735907917853,0.28845,3469.4,3469.3,0.28845]
[1735907918468,5.4806631,3469.8,3468.9,3.2078]
[1735907918658,0.28848,3469.1,3469.0,0.28847]
[1735907919766,0.2885,3468.9,3468.8,0.28849]
[1735907919959,0.72115,3469.3,3468.5,11.29479356]
[1735907920162,0.72119,3469.1,3468.5,9.02193046]
[1735907920361,0.28851,3468.7,3468.6,0.28851]
[1735907921065,0.2885,3468.9,3468.8,0.28849]
[1735907922064,0.72114,3469.3,3468.5,2.2728631]
[1735907922266,0.28851,3468.7,3468.6,0.2885]
[1735907923072,0.72119,3469.1,3468.4,3.2078]
[1735907923278,0.2885,3468.9,3468.8,0.28849]
[1735907926674,0.28851,3468.7,3468.6,0.2885]
[1735907928679,0.28851,3468.7,3468.6,13.74203792]
[1735907931378,0.28851,3468.7,3468.6,4.72010746]
[1735907933986,0.28851,3468.7,3468.6,4.43160746]
[1735907934784,41.08851,3468.7,3468.6,4.43160746]
[1735907935187,40.8,3468.7,3468.2,9.31047046]
[1735907935384,0.28854,3468.3,3468.2,9.02193046]
[1735907935685,2.5614031,3468.3,3468.2,9.02193046]
[1735907936484,2.2728631,3468.3,3468.2,4.43171746]
[1735907936780,2.5614031,3468.3,3468.2,4.43171746]
[1735907937882,2.5614031,3468.3,3467.7,0.28858]
[1735907937883,0.28858,3467.8,3467.7,0.28858]
[1735907938083,0.28857,3467.9,3467.8,0.28857]
[1735907939288,3.2078,3468.0,3467.9,0.28857]
[1735907939487,5.47066243,3468.4,3467.5,2.2728631]
[1735907939692,0.28856,3468.1,3468.0,0.28855]
[1735907940684,0.28857,3468.0,3467.9,0.28856]
[1735907941682,0.28856,3468.1,3468.0,0.28855]
[1735907942677,3.2078,3468.4,3467.7,0.72147]
[1735907942980,2.98418243,3468.5,3468.0,0.7214]
[1735907942981,2.26286243,3468.5,3468.0,0.7214]
[1735907943180,0.28853,3468.4,3468.3,0.28853]
[1735907944589,0.28853,3468.5,3468.4,0.28852]
[1735907944786,2.55137243,3468.7,3468.6,0.28851]
[1735907944989,2.26286243,3468.7,3468.6,0.28851]
[1735907945188,2.55136243,3468.7,3468.6,0.28851]
[1735907945489,0.2885,3468.7,3468.6,0.28851]
[1735907948187,3.2078,3468.8,3468.3,9.0656934]
[1735907948490,3.4963,3468.8,3468.7,0.2885]
[1735907948793,3.2078,3468.8,3468.3,9.0656934]
[1735907948994,0.28851,3468.7,3468.6,0.2885]
[1735907950195,0.28849,3468.9,3468.8,0.28848]
[1735907951483,0.2885,3468.8,3468.7,0.2885]
[1735907953191,2.26286243,3469.1,3468.3,9.0656934]
[1735907953395,0.28851,3468.7,3468.6,0.28851]
[1735907954289,0.28852,3468.6,3468.5,0.28852]
[1735907954991,2.26286243,3469.1,3468.3,7.0813603]
[1735907954992,0.28853,3468.4,3468.3,7.0813603]
[1735907955386,0.28691454,3468.4,3468.3,7.0813603]
[1735907955794,0.28852,3468.5,3468.4,0.28852]
[1735907956797,3.2078,3468.8,3468.1,10.0006303]
[1735907956999,0.28855,3468.2,3468.1,10.2891703]
[1735907957395,0.28854,3468.3,3468.2,0.28853]
[1735907958891,0.28854,3468.3,3468.2,4.71891518]
[1735907959291,0.72127,3468.7,3468.2,4.43038518]
[1735907959492,0.28853,3468.5,3468.4,0.28852]
[1735907961203,44.0078,3468.8,3468.3,11.22519304]
[1735907961500,2.26286243,3469.1,3468.4,5.15171518]
[1735907961699,0.2885,3468.8,3468.7,0.2885]
[1735907961896,0.28852,3468.6,3468.5,0.28851]
[1735907962696,0.28852,3468.5,3468.4,0.28852]
[1735907962897,0.28852,3468.5,3468.4,7.08332786]
[1735907964497,0.28852,3468.5,3468.4,0.28852]
[1735907965806,0.28852,3468.7,3468.6,0.2885]
[1735907966702,0.28852,3468.6,3468.5,0.28851]
[1735907967705,0.28852,3468.6,3468.5,4.72085548]
[1735907968904,0.28852,3468.6,3468.5,11.52102478]
[1735907971408,0.28852,3468.6,3468.5,4.72085548]
[1735907975418,0.28851,3468.7,3468.6,0.2885]
[1735907976623,0.28851,3468.7,3468.6,11.52185436]
[1735907978114,3.2078,3468.9,3468.6,11.23335436]
[1735907978418,3.4963,3468.9,3468.8,0.2885]
[1735907979318,3.4963,3468.9,3468.8,4.72084548]
[1735907983718,3.4963,3468.9,3468.8,11.52185436]
[1735907984619,3.2078,3468.9,3468.8,11.52185436]
[1735907984823,2.26286243,3469.1,3468.8,11.23335436]
[1735907985013,2.26286243,3469.1,3469.0,0.28848]
[1735907986523,0.28845,3469.4,3469.0,24.56591252]
[1735907986723,0.28845,3469.4,3469.3,0.28845]
[1735907986917,2.26286243,3469.6,3469.4,0.28844]
[1735907986918,0.28844,3469.5,3469.4,0.28844]
[1735907988128,0.28844,3469.5,3469.4,11.51849847]
[1735907988915,2.26286243,3469.7,3469.4,11.23005847]
[1735907989119,0.28843,3469.6,3469.5,0.28843]
[1735907992527,0.28842,3469.7,3469.6,0.28842]
[1735907992730,2.26286243,3469.8,3469.3,7.51884299]
[1735907992926,0.28843,3469.7,3469.6,0.28842]
[1735907993725,2.26286243,3469.8,3469.3,6.79771299]
[1735907993927,44.19429365,3470.0,3469.4,0.72112]
[1735907993928,2.55127243,3469.9,3469.4,0.72112]
[1735907994235,2.55127243,3469.9,3469.8,0.28841]
[1735907994427,0.28842,3469.8,3469.7,0.28841]
[1735908005838,3.2078,3470.2,3470.1,0.28839]
[1735908007743,3.2078,3470.2,3470.1,2.5612531]
[1735908008238,3.2078,3470.7,3470.1,3.3988631]
[1735908008439,2.55119243,3470.8,3470.5,2.2728631]
[1735908008640,2.55119243,3470.8,3470.7,0.28834]
[1735908008845,0.28833,3471.0,3470.9,0.28831]
[1735908009144,2.55117243,3471.1,3471.0,0.28831]
[1735908009539,0.28832,3471.0,3470.9,0.28831]
[1735908011445,6.19132243,3471.7,3470.7,3.2078]
[1735908011645,0.2883,3471.2,3471.1,0.2883]
[1735908011939,6.19132243,3471.7,3470.7,3.2078]
[1735908012144,0.28832,3471.0,3470.9,0.28831]
[1735908012345,5.4806631,3471.3,3470.7,3.2078]
[1735908012537,0.72075,3471.2,3470.4,4.52327734]
[1735908012738,0.28835,3470.6,3470.5,0.28835]
[1735908012938,0.28835,3470.5,3470.4,4.81163734]
[1735908013542,40.8,3470.6,3470.3,3.49617]
[1735908013735,0.28836,3470.4,3470.3,3.49617]
[1735908015146,0.28836,3470.5,3470.4,0.28835]
[1735908016240,0.28836,3470.5,3470.4,0.28836]
[1735908016445,0.28835,3470.6,3470.5,0.28834]
[1735908016939,0.28836,3470.5,3470.4,0.28836]
[1735908019844,0.28836,3470.4,3470.3,3.49616]
[1735908020242,0.28836,3470.4,3470.3,3.2078]
[1735908020548,0.2884,3470.0,3469.9,0.2884]
[1735908023749,0.28839,3470.1,3470.0,0.28839]
[1735908025249,3.2078,3470.5,3470.1,0.28838]
[1735908025250,0.28838,3470.2,3470.1,0.28838]
[1735908026351,3.2078,3470.4,3469.8,3.2078]
[1735908026555,0.28839,3470.1,3470.0,0.28839]
[1735908028155,3.2078,3470.4,3469.8,3.2078]
[1735908028347,0.28838,3470.3,3470.2,0.28837]
[1735908029958,46.27066243,3470.8,3470.4,0.28836]
[1735908029959,0.28836,3470.5,3470.4,0.28836]
[1735908035050,40.8,3470.8,3470.2,5.4806631]
[1735908035257,0.28834,3470.7,3470.6,0.28834]
[1735908035653,2.26286243,3470.9,3470.5,2.9937431]
[1735908035957,2.55118243,3470.9,3470.8,0.28833]
[1735908037858,0.28832,3470.9,3470.8,0.28833]
[1735908038258,40.8,3471.1,3470.6,7.73107734]
[1735908038458,0.28834,3470.8,3470.7,0.28833]
[1735908039055,0.28834,3470.8,3470.7,4.81160734]
[1735908039764,0.28834,3470.8,3470.7,4.52327734]
[1735908040863,0.28835,3470.6,3470.5,4.52327734]
[1735908042268,0.28835,3470.5,3470.4,4.52327734]
[1735908043260,0.28835,3470.5,3470.4,4.81163734]
[1735908045367,0.28835,3470.5,3470.4,9.23663319]
[1735908046665,0.28835,3470.5,3470.4,4.71335585]
[1735908047870,2.5612131,3470.5,3470.4,4.42499585]
[1735908049066,7.5612131,3470.5,3470.4,4.42499585]
[1735908049667,9.53572553,3470.5,3470.1,4.5278678]
[1735908049868,3.49618,3470.2,3470.1,4.5278678]
[1735908050363,44.29618,3470.2,3470.1,4.5278678]
[1735908051063,46.27066243,3470.2,3469.8,4.5278678]
[1735908051267,43.06286243,3470.2,3469.8,4.5278678]
[1735908051471,0.2884,3469.9,3469.8,4.8162778]
[1735908052469,0.2884,3469.9,3469.8,4.5278678]
[1735908052868,0.2884,3469.9,3469.8,11.22664483]
[1735908054471,0.2884,3469.9,3469.8,4.71734184]
[1735908057176,0.2884,3469.9,3469.8,11.51505483]
[1735908058471,0.2884,3469.9,3469.8,11.22664483]
[1735908058671,0.2884,3469.9,3469.8,11.51505483]
[1735908058873,0.2884,3469.9,3469.8,11.22664483]
[1735908059579,0.2884,3469.9,3469.8,11.51505483]
[1735908059876,0.2884,3469.9,3469.8,4.71734184]
[1735908060877,0.2884,3470.0,3469.9,0.28839]
[1735908063183,0.2884,3470.0,3469.9,11.51041347]
[1735908064681,0.28839,3470.2,3470.1,0.28838]
[1735908065279,41.08839,3470.2,3470.1,0.28838]
[1735908065876,41.08839,3470.2,3470.1,4.816985]
[1735908067578,41.08839,3470.2,3470.1,4.528605]
[1735908068781,41.08839,3470.2,3470.1,4.816995]
[1735908071888,0.28839,3470.2,3470.1,4.816995]
[1735908072088,0.28839,3470.2,3470.1,0.28839]
[1735908072589,0.28839,3470.2,3470.0,4.528605]
[1735908072590,0.28839,3470.1,3470.0,4.816995]
[1735908073485,0.28839,3470.1,3470.0,4.71694494]
[1735908075492,0.28839,3470.1,3470.0,4.42855494]
[1735908075794,0.28839,3470.1,3470.0,4.71695494]
[1735908076189,0.28839,3470.1,3470.0,4.42855494]
[1735908076489,0.28839,3470.1,3470.0,4.52860769]
[1735908076891,0.28839,3470.1,3470.0,4.81700769]
[1735908077688,0.28839,3470.1,3470.0,4.52860769]
[1735908079992,41.08839,3470.1,3470.0,4.52860769]
[1735908080387,47.21439,3470.1,3470.0,2.64260769]
[1735908080796,0.28842,3469.7,3469.6,6.79309163]
[1735908080996,3.49622,3469.7,3469.6,6.79309163]
[1735908082498,0.28846,3469.2,3469.1,7.08155163]
[1735908083091,0.28846,3469.2,3469.1,7.08156163]
[1735908083793,0.28846,3469.2,3469.1,11.46285045]
[1735908084010,3.2078,3469.7,3469.1,11.17438045]
[1735908084309,0.28846,3469.3,3469.2,0.28846]
[1735908085010,0.28846,3469.3,3469.2,11.46284045]
[1735908085508,0.28846,3469.3,3469.2,11.17438045]
[1735908086507,0.28846,3469.3,3469.2,4.38128882]
[1735908088109,0.28847,3469.1,3469.0,7.08157163]
[1735908088408,0.28847,3469.1,3469.0,6.79309163]
[1735908089307,0.28847,3469.1,3469.0,7.08157163]
[1735908089704,0.28847,3469.1,3469.0,4.38128333]
[1735908090903,0.28848,3469.0,3468.9,0.28849]
[1735908091910,0.72116,3469.3,3468.8,10.00089163]
[1735908092107,0.28849,3468.9,3468.8,10.28938163]
[1735908092715,0.28849,3468.9,3468.8,10.00089163]
[1735908093402,0.28849,3468.9,3468.8,10.28939163]
[1735908093806,0.28849,3468.9,3468.8,14.38127393]
[1735908094014,0.28849,3468.9,3468.8,14.66977393]
[1735908095006,0.28849,3468.9,3468.8,14.38127393]
[1735908095415,0.28849,3468.9,3468.8,14.66977393]
[1735908095816,0.28849,3468.9,3468.8,11.46197393]
[1735908096010,0.28849,3468.9,3468.8,11.17347393]
[1735908096701,0.28849,3468.9,3468.8,11.46197393]
[1735908097113,0.28849,3468.9,3468.8,4.6688823]
[1735908097312,0.28849,3468.9,3468.8,4.3803823]
[1735908098614,0.28849,3468.9,3468.7,6.79309163]
[1735908098915,0.28849,3468.9,3468.8,0.2885]
[1735908100113,0.28846,3469.2,3468.8,0.2885]
[1735908100724,3.2078,3469.4,3468.7,6.79309163]
[1735908101018,0.28847,3469.2,3468.9,0.28848]
[1735908102020,0.28847,3469.1,3468.9,0.28848]
[1735908103117,0.28848,3469.0,3468.8,0.28849]
[1735908104120,0.28849,3468.9,3468.8,0.28849]
[1735908104918,0.28849,3469.0,3468.9,0.28848]
[1735908105522,0.72114,3469.3,3468.6,10.00089163]